[Event "Qatar Masters 2024"]
[Site "Doha"]
[Date "2024.12.03"]
[Round "1.25"]
[White "Tyurin, Artem"]
[Black "Ganguly, Surya Shekhar"]
[Result "0-1"]
[Annotator "TA"]
[ECO "C54"]
[WhiteElo "2356"]
[BlackElo "2598"]
[PlyCount "118"]
[EventDate "2024.11.24"]
[EventType "swiss"]
[EventCountry "QAT"]
[SourceTitle "playchess.com"]
[Source "ChessBase"]
[SourceQuality "1"]
[TimeControl "40/5400+30:1800+30"]

{[%evp 19,118,45,43,35,43,34,45,29,31,34,25,4,0,10,8,0,0,0,0,0,0,0,0,0,0,0,10,-12,-19,-68,-75,-132,-122,-125,-39,-27,-25,-38,-17,-25,-20,-20,-21,-46,-49,-59,-65,-60,-74,-81,-78,-69,-69,-75,-68,-86,-61,-59,-59,-59,-59,-59,-59,-59,-59,-109,-114,-114,-114,-114,-91,-83,-68,-312,-312,-305,-305,-298,-213,-213,-207,-247,-257,-257,-194,-195,-20,-29981,-29977,-29982,-29983,-29983,-29984,-29984,-29985,-29985,-29986,-29986,-29987,-29998,-29999]} 1. e4 {[%emt 0:00:05]} e5 {[%emt 0:00:22]} 2. Nf3 {[%emt 0:00:05]} Nc6 {[%emt 0:00:06]} 3. Bc4 {[%emt 0:00:03]} Nf6 {[%emt 0:00:36]} 4. d3 {[%emt 0:00:34]} Bc5 {[%emt 0:00:53]} 5. Bg5 {[%emt 0:00:10]} h6 {[%emt 0:01:03]} 6. Bh4 {[%emt 0:00:33]} d6 {[%emt 0:00:10]} 7. c3 {[%emt 0:00:05] outshines the older 7.h3.} a6 {[%emt 0:00:52]} 8. Nbd2 {[%emt 0:00:17] C54: Giuoco Piano: 4 c3 Nf6, main lines with 5 d4 and 5 d3.} Ba7 {[%emt 0:00:35]} 9. b4 {[%emt 0:01:29]} Qe7 {[%emt 0:09:33]} 10. O-O {[%emt 0:03:54]} Be6 {[%emt 0:07:22]} 11. a4 {[%emt 0:00:13]} Bxc4 $5 {[%emt 0:00:51][%mdl 4] A promising side line.} 12. Nxc4 {[%emt 0:00:08]} Qe6 {[%emt 0:00:04]} 13. b5 {[%emt 0:20:59]} Ne7 {[%emt 0:01:02]} 14. Bxf6 {[%emt 0:06:01]} Qxf6 {[%emt 0:01:01]} 15. d4 {[%emt 0:01:30]} exd4 {[%emt 0:02:23]} 16. cxd4 {[%emt 0:02:06]} O-O {[%emt 0:00:10]} 17. Ne3 $146 {[%emt 0:03:22]} ({Predecessor:} 17. bxa6 bxa6 18. Ne3 Qe6 19. Qc2 c6 20. Rfe1 Rfe8 21. Rab1 Rab8 22. Qd3 Rxb1 23. Rxb1 {1-0 Yu,Y (2729)-Bachmann,A (2604) ChessKid Cup Div 3 L rapid 2023 (2.1)}) 17... axb5 {[%emt 0:16:12]} 18. axb5 {[%emt 0:00:07]} Qe6 {[%emt 0:00:31]} 19. Re1 {[%emt 0:32:32]} Bb6 {[%emt 0:01:44]} 20. Rc1 {[%emt 0:02:13]} d5 {[%emt 0:04:47]} (20... Qxe4 $2 21. Nc4 Qd5 22. Rxe7 $18) 21. exd5 {[%emt 0:03:05]} Nxd5 {[%emt 0:01:39]} 22. Nc4 {[%emt 0:04:43]} Qf6 {[%emt 0:00:29]} 23. Nfe5 {[%emt 0:01:36]} Ra2 {[%emt 0:05:41]} 24. Nf3 {[%emt 0:04:47]} (24. Rc2 $11 Rxc2 25. Qxc2) 24... Nf4 $1 $15 {[%emt 0:01:58]} 25. Nce5 {[%emt 0:01:24]} (25. Rc2 $142 Qg6 26. Ne3) 25... Rd8 {[%emt 0:00:30]} 26. Rc2 {[%emt 0:03:51]} Raa8 {[%emt 0:04:42]} (26... Rxc2 $17 27. Qxc2 Ne6 (27... Bxd4 $2 {perishes.} 28. Nxd4 Rxd4 29. Nc6 $18)) 27. g3 $15 {[%emt 0:03:36]} Ne6 {[%emt 0:05:13]} 28. d5 {[%emt 0:00:04]} Nd4 {[%emt 0:00:28]} 29. Nxd4 {[%emt 0:00:37]} Rxd5 {[%emt 0:00:07]} 30. Nef3 $1 {[%emt 0:00:56]} Bxd4 {[%emt 0:00:09]} 31. Nxd4 {[%emt 0:00:47]} Rxd4 {[%emt 0:00:06]} 32. Qc1 {[%emt 0:00:34]} Rd5 {[%emt 0:02:21]} 33. Rxc7 {[%emt 0:00:14]} Rxb5 {[%emt 0:00:15]} 34. Qc3 {[%emt 0:03:52]} Qxc3 {[%emt 0:06:00]} 35. Rxc3 {[%emt 0:00:02]} Rf5 {[%emt 0:00:21]} 36. Re2 {[%emt 0:01:17]} b5 {[%emt 0:00:34]} 37. Rb2 {[%emt 0:00:13]} h5 {[%emt 0:05:00]} 38. Rc7 {[%emt 0:00:52]} Rb8 {[%emt 0:00:19]} 39. Rb4 {[%emt 0:00:04]} g5 {[%emt 0:00:54]} 40. Kg2 {[%emt 0:00:58]} Rb6 {[%emt 0:02:58]} 41. h3 {[%emt 0:11:28]} Kg7 {[%emt 0:01:36]} 42. f4 {[%emt 0:08:44]} ({White should try} 42. Rc8 $15) 42... g4 $1 $17 {[%emt 0:03:33]} 43. hxg4 {[%emt 0:00:03]} hxg4 {[%emt 0:00:06]} 44. Kf2 {[%emt 0:00:01]} Rh5 {[%emt 0:04:51]} 45. Ke3 {[%emt 0:02:51]} Rh3 {[%emt 0:02:21]} 46. Rc5 $2 {[%emt 0:03:20]} (46. f5 $15) 46... Rxg3+ $19 {[%emt 0:00:45]} 47. Kf2 {[%emt 0:06:30]} Rf3+ {[%emt 0:00:31]} 48. Kg2 {[%emt 0:00:01]} Kf6 {[%emt 0:00:42]} 49. Rh5 {[%emt 0:01:19]} Re6 {[%emt 0:06:21]} 50. Rhxb5 {[%emt 0:00:31]} Re2+ {[%emt 0:00:13]} 51. Kg1 {[%emt 0:00:01]} Rg3+ {[%emt 0:01:06]} 52. Kf1 {[%emt 0:00:10] [#]} Rgg2 $2 {[%emt 0:00:07]} ({Black should play} 52... Ree3 $1 $19 {[%cal Re3f3] ...Ref3+ would now be deadly.} 53. Rh5 Rb3) 53. Rg5 $2 {[%emt 0:01:06][%mdl 8192]} (53. Re5 $11 Ref2+ (53... Rxe5 54. fxe5+ Kxe5 55. Kxg2 Ke6 56. Rxg4 Kf5 57. Kf3 Ke5 58. Rg5+ Kd6 59. Ra5) 54. Ke1) 53... Ref2+ {[%emt 0:02:51]} 54. Ke1 {[%emt 0:00:01]} Ra2 {[%emt 0:00:08]} 55. Kf1 {[%emt 0:01:19] [#]} g3 $1 {[%emt 0:00:05]} 56. Rb6+ {[%emt 0:00:32]} Ke7 {[%emt 0:00:02]} 57. Rb7+ {[%emt 0:00:34]} Kd6 {[%emt 0:00:10]} 58. Rb6+ {[%emt 0:00:30]} Kc7 {[%emt 0:00:06]} 59. Ra6 {[%emt 0:00:17]} Raf2+ {[%emt 0:00:06]} 0-1

[Event "Qatar Masters 2024"]
[Site "Doha"]
[Date "2024.12.03"]
[Round "1.26"]
[White "Lodici, Lorenzo"]
[Black "Khamdamova, Afruza"]
[Result "0-1"]
[Annotator "TA"]
[ECO "E06"]
[WhiteElo "2564"]
[BlackElo "2330"]
[PlyCount "118"]
[EventDate "2024.11.24"]
[EventType "swiss"]
[EventCountry "QAT"]
[SourceTitle "playchess.com"]
[Source "ChessBase"]
[SourceQuality "1"]
[TimeControl "40/5400+30:1800+30"]

{[%evp 43,118,0,21,23,30,33,18,13,22,0,16,0,15,0,0,0,0,0,0,-16,13,4,18,0,8,-7,0,0,0,0,0,0,0,0,0,0,0,0,0,0,0,-3,-4,-8,-8,-180,-157,-378,-341,-347,-360,-358,-345,-370,-385,-364,-381,-356,-376,-370,-373,-413,-343,-376,-380,-350,-366,-377,-371,-4140,-4133,-838,-438,-29988,-29989,-29989,-29990]} 1. d4 {[%emt 0:00:08]} d5 {[%emt 0:00:13]} 2. c4 {[%emt 0:00:07]} e6 {[%emt 0:00:06]} 3. Nf3 {[%emt 0:00:06]} Nf6 {[%emt 0:00:06]} 4. Nc3 {[%emt 0:00:19]} Be7 {[%emt 0:00:12]} 5. g3 {[%emt 0:00:10]} O-O {[%emt 0:00:12]} 6. Bg2 {[%emt 0:00:04]} dxc4 {[%emt 0:00:17]} 7. Ne5 {[%emt 0:00:06]} c5 {[%emt 0:00:19]} 8. dxc5 {[%emt 0:00:06]} Qxd1+ {[%emt 0:00:05]} 9. Nxd1 {[%emt 0:00:05]} Bxc5 {[%emt 0:00:06]} 10. O-O {[%emt 0:02:31] The main line 10.0-0 scores better than 10.Nxc4.} Nc6 {[%emt 0:01:21] E06: Closed Catalan: Early deviations.} 11. Bxc6 {[%emt 0:00:31]} bxc6 {[%emt 0:00:05]} 12. Be3 {[%emt 0:00:05]} Bb6 {[%emt 0:00:27]} 13. Bxb6 {[%emt 0:00:09]} axb6 {[%emt 0:00:05]} 14. Nc3 {[%emt 0:01:25]} Ba6 {[%emt 0:03:11]} 15. Nxc6 {[%emt 0:04:03]} Bb7 {[%emt 0:00:05]} 16. Nb4 {[%emt 0:00:33]} Rfd8 {[%emt 0:01:31]} 17. Rfd1 {[%emt 0:02:42]} g5 $146 {[%emt 0:03:17]} ({Predecessor:} 17... Kf8 18. f3 g5 19. Rxd8+ Rxd8 20. Rd1 Rxd1+ 21. Nxd1 Ke7 22. Kf2 Kd6 23. Nc3 Kc5 24. a3 b5 25. e4 {½-½ Smirnov,P (2538)-Khripachenko,A (2259) Kerkinitida Cup Blitz 2023 (4)}) 18. f3 {[%emt 0:02:46]} g4 {[%emt 0:03:06]} 19. Kf2 {[%emt 0:00:37]} Kg7 {[%emt 0:05:24]} 20. Rac1 {[%emt 0:15:14]} h5 {[%emt 0:22:17]} 21. Ke3 {[%emt 0:07:52]} gxf3 {[%emt 0:22:19]} 22. exf3 {[%emt 0:00:35]} Nd5+ {[%emt 0:05:09]} 23. Ncxd5 {[%emt 0:18:39]} Bxd5 {[%emt 0:00:25]} 24. Rd4 {[%emt 0:00:07]} Rac8 {[%emt 0:00:50]} 25. Rh4 {[%emt 0:10:07]} Kg6 {[%emt 0:01:13]} 26. a3 {[%emt 0:02:05]} Rc5 {[%emt 0:01:03]} 27. Rc2 {[%emt 0:00:19]} Rdc8 {[%emt 0:06:23]} 28. Rd4 {[%emt 0:05:35]} Ba8 {[%emt 0:05:03]} 29. Rd6 {[%emt 0:01:02]} b5 {[%emt 0:00:49]} 30. Rc3 {[%emt 0:04:58]} Re5+ {[%emt 0:02:14]} 31. Kd2 {[%emt 0:03:47]} Rh8 {[%emt 0:01:37]} (31... h4 $5) 32. Re3 {[%emt 0:05:55]} Rf5 {[%emt 0:01:39]} 33. Ke2 {[%emt 0:02:12]} Rc8 {[%emt 0:00:31]} 34. Rc3 {[%emt 0:01:00]} Re5+ {[%emt 0:00:17]} 35. Kf2 {[%emt 0:00:05]} Rh8 {[%emt 0:01:17]} 36. Re3 {[%emt 0:09:00]} Rf5 {[%emt 0:00:28]} 37. Rc3 {[%emt 0:00:59]} Re5 {[%emt 0:00:10]} 38. a4 {[%emt 0:01:55]} bxa4 {[%emt 0:01:45]} 39. Rxc4 {[%emt 0:00:01]} Rf5 {[%emt 0:00:31]} 40. f4 {[%emt 0:01:10]} Ra5 {[%emt 0:10:30]} 41. Nd3 {[%emt 0:07:27]} f6 {[%emt 0:07:02]} 42. f5+ {[%emt 0:05:23]} (42. Rxe6 Bd5 43. Ne5+ Kf5 $19) 42... Rxf5+ {[%emt 0:02:36]} 43. Nf4+ {[%emt 0:00:30]} Kh6 {[%emt 0:00:12]} 44. Rxa4 $2 {[%emt 0:01:16]} (44. Rxe6 $2 Bd5 45. Ree4 Bxe4 46. Rxe4 Rb5 47. Rxa4 Rxb2+ 48. Kf3 Rxh2 $19) (44. Ke3 $11 {and White stays safe.}) 44... e5 $19 {[%emt 0:01:13]} 45. h3 $2 {[%emt 0:13:30]} (45. Ra5 $17) 45... Rf8 {[%emt 0:05:41]} ({Resist} 45... exf4 46. g4 Rb5 (46... hxg4 $2 47. hxg4 Re5 48. Rxf4 $19) 47. Rxf6+ Kg7 48. Raxf4 Rxb2+ 49. Ke3 Rb3+ (49... Re8+ $2 50. Kd4 $19) 50. Kd2 Rd8+ (50... Rxh3 51. Rf7+ Kh6 52. g5+ Kg6 53. R7f6+ Kxg5 54. R6f5+ Kh6 55. Rf6+ Kg5 56. R6f5+ Kh6 57. Rf6+ Kg5 $11) 51. Kc2 $19) 46. Ra5 {[%emt 0:03:03]} Be4 {[%emt 0:00:48]} ({But not} 46... h4 47. Kg1 Rg8 (47... hxg3 $2 48. Nd5 $19) 48. Nh5 Kxh5 (48... Rxh5 $2 49. Rxf6+ Kg7 50. Rfa6 $19) 49. g4+ Kh6 50. Rxa8 Rxa8 51. gxf5 $19) 47. Ra4 {[%emt 0:00:13]} Bb7 {[%emt 0:00:43]} 48. Rb4 {[%emt 0:01:10]} Bc8 {[%emt 0:00:21]} 49. Kf3 {[%emt 0:00:03]} exf4 {[%emt 0:00:52]} 50. g4 {[%emt 0:00:02]} Re5 {[%emt 0:04:34]} 51. Kxf4 {[%emt 0:00:11]} Kg6 {[%emt 0:04:03]} 52. Rb8 {[%emt 0:02:10]} Rc5 {[%emt 0:00:10]} 53. b4 {[%emt 0:02:10]} Rc4+ {[%emt 0:00:12]} 54. Ke3 {[%emt 0:00:05]} hxg4 {[%emt 0:00:18]} 55. hxg4 {[%emt 0:00:01]} Rh8 {[%emt 0:03:28]} 56. b5 $2 {[%emt 0:01:28]} (56. Rbb6 Rh3+ (56... Rxg4 57. Rxf6+ Kh5 58. Rbd6 $15) 57. Kd2) 56... Rh3+ $19 {[%emt 0:00:17]} 57. Kd2 {[%emt 0:00:01]} Bxg4 {[%emt 0:00:39]} 58. b6 {[%emt 0:00:17]} (58. Rf8 $19 Rf4 59. Rd3) 58... Bf5 {[%emt 0:00:23]} 59. Rg8+ {[%emt 0:01:16]} Kf7 {[%emt 0:00:38]} 0-1

[Event "Qatar Masters 2024"]
[Site "Doha"]
[Date "2024.12.03"]
[Round "1.27"]
[White "Shturman, Arseniy"]
[Black "Quesada Perez, Luis Ernesto"]
[Result "1/2-1/2"]
[Annotator "TA"]
[ECO "B07"]
[WhiteElo "2350"]
[BlackElo "2580"]
[PlyCount "100"]
[EventDate "2024.11.24"]
[EventType "swiss"]
[EventCountry "QAT"]
[SourceTitle "playchess.com"]
[Source "ChessBase"]
[SourceQuality "1"]
[TimeControl "40/5400+30:1800+30"]

{[%evp 18,100,21,29,24,26,26,31,47,23,35,17,7,0,0,0,0,0,2,15,14,8,19,11,8,12,16,10,12,0,0,-5,0,0,8,0,14,0,0,-31,-39,-62,0,0,0,0,0,0,10,0,0,0,0,0,0,0,0,0,0,0,0,0,0,0,0,0,0,0,0,-32,-37,-65,0,0,0,0,0,0,0,0,0,0,41,0,0]} 1. e4 {[%emt 0:00:04]} d6 {[%emt 0:00:07]} 2. d4 {[%emt 0:00:12]} Nf6 {[%emt 0:00:03]} 3. Nc3 {[%emt 0:00:09]} e5 {[%emt 0:00:06]} 4. dxe5 {[%emt 0:00:39]} dxe5 {[%emt 0:00:04]} 5. Qxd8+ {[%emt 0:00:04]} Kxd8 {[%emt 0:00:13]} 6. Bc4 {[%emt 0:00:12]} Bb4 {[%emt 0:00:43] 6...Ke8 gains popularity.} 7. Bxf7 {[%emt 0:07:37] B07: Pirc Defence: Miscellaneous Systems.} Rf8 {[%emt 0:01:40]} 8. Bc4 {[%emt 0:02:46]} Nxe4 {[%emt 0:00:07]} 9. Nge2 {[%emt 0:02:13]} Bf5 {[%emt 0:08:23]} ({Much weaker is} 9... Rxf2 $6 10. a3 Bxc3+ 11. Nxc3 Nxc3 (11... Rxc2 $2 12. Bd3 $18) 12. Kxf2 Ne4+ $18) 10. O-O {[%emt 0:06:37]} Nxc3 {[%emt 0:12:57]} 11. Bg5+ $146 {[%emt 0:15:22]} ({Predecessor:} 11. Nxc3 c6 12. Bb3 Nd7 13. Bg5+ Kc7 14. Nd1 a5 15. c3 Bd6 16. Bc4 {½-½ Casper,T (2435)-Hesse,P (2355) DDR-ch34 Final 1985 (2)}) 11... Kc8 {[%emt 0:04:43]} 12. Nxc3 {[%emt 0:04:56]} c6 {[%emt 0:18:22]} 13. Rfe1 {[%emt 0:14:11]} Nd7 {[%emt 0:00:03]} 14. Re2 {[%emt 0:04:02]} Kc7 {[%emt 0:00:26]} 15. Ne4 {[%emt 0:05:10]} h6 {[%emt 0:21:32]} 16. a3 {[%emt 0:08:19]} Bxe4 {[%emt 0:10:18]} 17. Rxe4 {[%emt 0:00:09]} hxg5 {[%emt 0:10:15]} 18. axb4 {[%emt 0:01:24]} Rf4 {[%emt 0:00:01]} 19. Rae1 {[%emt 0:06:00]} Re8 {[%emt 0:00:14]} 20. g3 {[%emt 0:01:14]} Rxe4 {[%emt 0:00:09]} 21. Rxe4 {[%emt 0:00:03]} Nf6 {[%emt 0:00:06]} 22. Re3 {[%emt 0:01:33]} e4 {[%emt 0:00:02]} 23. Bf7 {[%emt 0:12:11]} Re7 {[%emt 0:04:06]} 24. Bg6 {[%emt 0:00:53]} Kd6 {[%emt 0:00:47]} 25. Kg2 {[%emt 0:01:18]} Re5 {[%emt 0:00:55]} 26. c3 {[%emt 0:01:25]} Re7 {[%emt 0:01:16]} 27. h3 {[%emt 0:04:00]} Kd5 {[%emt 0:00:57]} 28. b3 {[%emt 0:00:36]} Kd6 {[%emt 0:00:13]} 29. c4 {[%emt 0:01:00]} c5 {[%emt 0:05:07]} (29... Ke5 $15 30. Bxe4 Nxe4) 30. b5 $1 $11 {[%emt 0:00:20]} Kc7 {[%emt 0:00:56]} 31. Kf1 {[%emt 0:00:39]} Kd6 {[%emt 0:00:19]} 32. Ke2 {[%emt 0:00:23]} Re5 {[%emt 0:00:47]} 33. Ke1 {[%emt 0:00:23]} Re7 {[%emt 0:00:28]} 34. Ke2 {[%emt 0:00:04]} a6 {[%emt 0:00:13]} 35. bxa6 {[%emt 0:00:13]} bxa6 {[%emt 0:00:01]} 36. Ke1 {[%emt 0:01:29]} a5 {[%emt 0:00:14]} 37. Ke2 {[%emt 0:00:05]} Re6 {[%emt 0:01:02]} 38. Bf7 {[%emt 0:00:15]} Re5 {[%emt 0:00:14]} 39. Bg6 {[%emt 0:00:05]} Re7 {[%emt 0:00:09]} 40. Ke1 {[%emt 0:01:27]} Ke5 {[%emt 0:01:34]} 41. f3 {[%emt 0:30:35]} Kd4 {[%emt 0:08:38]} 42. Kd2 {[%emt 0:00:00]} a4 {[%emt 0:04:11]} 43. Bxe4 {[%emt 0:00:00]} axb3 {[%emt 0:01:11]} 44. Rxb3 {[%emt 0:00:00]} Kxc4 {[%emt 0:00:06]} (44... Nxe4+ $15 45. fxe4 g4 (45... Rxe4 46. Rb7 $11) (45... Kxc4 46. Rc3+ Kb4 47. Kd3 $11)) 45. Rc3+ $11 {[%emt 0:00:00]} Kb4 {[%emt 0:00:44]} 46. Bd3 {[%emt 0:00:00]} Rd7 {[%emt 0:03:55]} 47. Kc2 {[%emt 0:00:00]} Rd4 {[%emt 0:00:25]} 48. Rb3+ {[%emt 0:00:00]} Ka4 {[%emt 0:00:02]} 49. Rb7 {[%emt 0:00:00]} c4 {[%emt 0:00:06]} 50. Be4 {[%emt 0:00:00]} Nxe4 {[%emt 0:02:42]} 1/2-1/2

[Event "Qatar Masters 2024"]
[Site "Doha"]
[Date "2024.12.03"]
[Round "1.28"]
[White "Bharath Subramaniyam H"]
[Black "Sliwicka, Alicja"]
[Result "1-0"]
[Annotator "TA"]
[ECO "B31"]
[WhiteElo "2561"]
[BlackElo "2380"]
[PlyCount "75"]
[EventDate "2024.11.24"]
[EventType "swiss"]
[EventCountry "QAT"]
[SourceTitle "playchess.com"]
[Source "ChessBase"]
[SourceQuality "1"]
[TimeControl "40/5400+30:1800+30"]

{[%evp 10,75,27,18,25,23,27,14,25,8,37,38,61,37,106,96,89,88,152,161,300,303,297,292,302,304,297,301,296,299,300,289,319,310,299,319,385,381,395,385,415,423,424,427,381,362,431,384,545,376,430,427,508,516,541,574,576,546,547,570,575,509,583,584,616,584,564,557]} 1. e4 {[%emt 0:00:17]} c5 {[%emt 0:00:06]} 2. Nf3 {[%emt 0:00:10]} Nc6 {[%emt 0:00:06]} 3. Bb5 {[%emt 0:00:43]} g6 {[%emt 0:00:14]} 4. Nc3 {[%emt 0:01:31]} Bg7 {[%emt 0:05:17]} 5. O-O {[%emt 0:00:14]} d6 {[%emt 0:05:42] [#]} 6. e5 $1 {[%emt 0:00:35]} dxe5 {[%emt 0:02:36]} (6... Bg4 {feels hotter.} 7. exd6 exd6 8. Nd5 Nf6) 7. Bxc6+ {[%emt 0:00:13]} bxc6 {[%emt 0:00:05]} 8. Re1 {[%emt 0:00:31]} Qc7 {[%emt 0:06:33] The position is equal.} 9. b3 {[%emt 0:00:34]} Bf5 {[%emt 0:12:03][%cal Oe5e4] White must now prevent ...e4!} 10. Bb2 {[%emt 0:25:59]} Rd8 {[%emt 0:08:33]} 11. Na4 {[%emt 0:16:28][%cal Bc3a4,Ba4c5,Bc5e6][%mdl 32]} f6 {[%emt 0:02:42]} (11... Bg4 $14) 12. Nxc5 $16 {[%emt 0:01:56]} Nh6 {[%emt 0:01:15]} 13. d4 {[%emt 0:02:17]} exd4 {[%emt 0:13:09]} ({Black should try} 13... Rd5) 14. Nxd4 {[%emt 0:08:46] Excellent horsemanship.} Rd5 {[%emt 0:05:16]} (14... Qb6 {was necessary.}) 15. Nce6 $18 {[%emt 0:03:05]} Bxe6 {[%emt 0:00:54]} 16. Nxe6 {[%emt 0:00:14]} (16. Rxe6 c5 17. Qf3 (17. Rc6 $2 Qd7 $19) 17... Rxd4 18. Bxd4 cxd4 $15) 16... Qd6 {[%emt 0:04:48]} 17. Nxg7+ {[%emt 0:06:25]} Kf7 {[%emt 0:00:06]} 18. Qe2 {[%emt 0:00:07]} Kxg7 {[%emt 0:06:55]} 19. Qxe7+ {[%emt 0:01:51]} Nf7 {[%emt 0:00:28]} 20. Qe6 {[%emt 0:07:14]} (20. Qxa7 Rd8 21. h3 Rf8 $18) 20... Qf4 {[%emt 0:03:27]} 21. g3 {[%emt 0:04:26]} (21. Qxc6 Rhd8 22. Bc3 Ne5 23. Bxe5 fxe5) 21... Qf5 {[%emt 0:01:07]} 22. Qxf5 {[%emt 0:00:48]} (22. Qxc6 Rd2 23. Rf1 Rxc2 24. Bxf6+ Kh6 $14) 22... Rxf5 {[%emt 0:00:07]} 23. Rad1 {[%emt 0:00:53]} g5 {[%emt 0:15:27][%cal Bg6g5,Bg5g4][%mdl 32]} 24. Rd7 {[%emt 0:06:37]} g4 {[%emt 0:00:13]} 25. Ree7 {[%emt 0:02:03]} ({Don't do} 25. Rxa7 Kg6 26. Ree7 Ng5 27. Rg7+ Kh5) 25... Rf8 {[%emt 0:00:05]} 26. Rxa7 {[%emt 0:00:18]} Kg6 {[%emt 0:00:16]} 27. Bc1 {[%emt 0:02:08]} Rf3 {[%emt 0:00:33]} 28. Be3 {[%emt 0:01:21]} Ne5 {[%emt 0:00:49]} (28... Rf5 {was called for.} 29. b4 h6) 29. Bd4 {[%emt 0:02:07]} Rd8 {[%emt 0:01:44]} 30. Bxe5 {[%emt 0:01:02] White is clearly winning.} Rd1+ {[%emt 0:01:36]} 31. Kg2 {[%emt 0:00:01]} Rd2 {[%emt 0:00:28]} 32. Rg7+ {[%emt 0:00:18]} Kf5 {[%emt 0:00:24] [#]} 33. Bd4 {[%emt 0:00:09]} Rxd4 {[%emt 0:00:41] [#]} 34. Rxg4 $3 {[%emt 0:00:54][%mdl 512]} Kxg4 {[%emt 0:01:29]} 35. h3+ {[%emt 0:00:12]} Kf5 {[%emt 0:00:04]} 36. Kxf3 {[%emt 0:00:05]} Rd2 {[%emt 0:00:06]} 37. Rxh7 {[%emt 0:00:37]} Rxc2 {[%emt 0:00:05]} 38. Rh5+ {[%emt 0:00:06] White took control after the opening.   Weighted Error Value: White=0.14 (very precise) /Black=0.36.  Mistake:       	---       	Black=4      Inaccurate:     	White=1     	Black=1      OK:         	White=16    	Black=10     Best:        	White=1     	Black=2      Brilliant:      	White=1     	---} 1-0

[Event "Qatar Masters 2024"]
[Site "Doha"]
[Date "2024.12.03"]
[Round "1.29"]
[White "Mohamed Anees M"]
[Black "Sankalp Gupta"]
[Result "0-1"]
[Annotator "TA"]
[ECO "C01"]
[WhiteElo "2344"]
[BlackElo "2539"]
[PlyCount "84"]
[EventDate "2024.11.24"]
[EventType "swiss"]
[EventCountry "QAT"]
[SourceTitle "playchess.com"]
[Source "ChessBase"]
[SourceQuality "1"]
[TimeControl "40/5400+30:1800+30"]

{[%evp 12,84,18,0,8,0,18,10,14,24,27,11,45,29,18,10,58,15,30,40,45,49,47,8,37,0,0,0,0,-12,0,-45,-53,-47,-34,-32,-40,-35,-2,-31,-28,-16,-19,-34,-24,-209,-215,-197,-214,-234,-254,-245,-221,-204,-120,-134,-137,-127,-142,-125,-17,-11,-11,-222,-222,-242,-242,-345,-344,-727,-714,-713,-669,-421,-420]} 1. e4 {[%emt 0:00:06]} e6 {[%emt 0:00:14]} 2. d4 {[%emt 0:00:06]} d5 {[%emt 0:00:04]} 3. exd5 {[%emt 0:00:32]} exd5 {[%emt 0:00:02]} 4. Nf3 {[%emt 0:00:07]} Bd6 {[%emt 0:00:43]} 5. c4 {[%emt 0:00:07][%cal Bc2c4,Bc4c5][%mdl 32]} Nf6 {[%emt 0:02:04]} 6. c5 {[%emt 0:00:28]} Be7 {[%emt 0:00:09]} 7. Bd3 {[%emt 0:00:07]} b6 {[%emt 0:00:49]} 8. Qa4+ {[%emt 0:10:31]} Bd7 {[%emt 0:01:53]} 9. Qc2 {[%emt 0:00:44]} Nc6 {[%emt 0:12:43] The position is equal.} 10. a3 {[%emt 0:02:45]} bxc5 {[%emt 0:00:18]} 11. dxc5 {[%emt 0:00:08]} a5 {[%emt 0:00:04]} 12. O-O {[%emt 0:05:15]} O-O {[%emt 0:00:02]} 13. Be3 {[%emt 0:08:52]} h6 {[%emt 0:22:37]} (13... d4 $11 {might be stronger.} 14. Nxd4 Nxd4 15. Bxd4 Bf5) 14. h3 {[%emt 0:04:10]} Re8 {[%emt 0:02:52]} 15. Nc3 {[%emt 0:07:16]} Bf8 {[%emt 0:03:14]} 16. Rad1 {[%emt 0:08:21][%cal Oc3d5]} Qc8 {[%emt 0:03:16][%cal Od7h3]} 17. Kh2 {[%emt 0:24:58]} Rb8 {[%emt 0:02:25]} (17... Qb7 $5) 18. Ne2 {[%emt 0:03:43]} Qb7 {[%emt 0:04:49]} 19. Rb1 {[%emt 0:00:47]} a4 {[%emt 0:00:01]} 20. Rfc1 {[%emt 0:05:00]} Ne4 {[%emt 0:02:57]} 21. Nc3 {[%emt 0:06:54]} Nxc5 {[%emt 0:04:40]} 22. Bxc5 {[%emt 0:00:58]} Bxc5 {[%emt 0:00:02]} 23. Nxa4 {[%emt 0:01:26]} Bd6+ {[%emt 0:00:51]} 24. Kg1 {[%emt 0:00:07]} Qc8 {[%emt 0:01:42]} 25. Re1 {[%emt 0:04:43]} Ne5 {[%emt 0:01:31]} 26. Nxe5 {[%emt 0:00:14]} Bxe5 {[%emt 0:00:02]} 27. Re3 {[%emt 0:04:02]} Bd6 {[%emt 0:07:33] And now ...Rxe3 would win. A strong pair of Bishops.} 28. Rbe1 {[%emt 0:01:20]} (28. Rxe8+ $11 {and White has nothing to worry.} Qxe8 29. Nc5) 28... Rxe3 $1 $19 {[%emt 0:00:46]} 29. Rxe3 {[%emt 0:00:02]} c5 {[%emt 0:00:02]} 30. Re1 {[%emt 0:00:27]} c4 {[%emt 0:11:42]} 31. Bf1 {[%emt 0:00:04]} Qc6 {[%emt 0:00:05]} 32. Nc3 {[%emt 0:00:05]} d4 {[%emt 0:00:08]} (32... Bc5 $19 {...d4 would now be deadly.} 33. Nd1 Qd6) 33. Ne4 $17 {[%emt 0:00:47][%cal Oe4d6]} d3 $36 {[%emt 0:00:01][%mdl 2048] Keeping White busy.} 34. Bxd3 {[%emt 0:01:40]} cxd3 {[%emt 0:00:14]} 35. Qxc6 {[%emt 0:00:04]} Bxc6 {[%emt 0:00:03]} (35... Bh2+ $1 $17 36. Kxh2 Bxc6) 36. Nxd6 $11 {[%emt 0:00:04]} Rxb2 $17 {[%emt 0:01:33][%mdl 4096] Endgame. ...d2 is the strong threat. KRB-KRN} 37. Nc4 {[%emt 0:01:00]} (37. Rd1 $11 {and White is okay.}) 37... Re2 $1 $19 {[%emt 0:11:30]} 38. Rd1 {[%emt 0:00:56] [#]} Bb5 $1 {[%emt 0:00:08]} 39. Ne3 {[%emt 0:00:27]} (39. Nd6 $142 d2 40. Rxd2 Rxd2 41. Nxb5) 39... d2 {[%emt 0:00:30]} 40. Nc2 $2 {[%emt 0:00:30]} (40. Nf1) 40... Ba4 {[%emt 0:02:34] Black is clearly winning.} 41. Kf1 {[%emt 0:30:11] [#]} Re1+ $1 {[%emt 0:30:02][%mdl 512]} 42. Rxe1 {[%emt 0:00:00]} (42. Nxe1 Bxd1) 42... Bxc2 {[%emt 0:00:00] Weighted Error Value: White=0.44/Black=0.13 (very precise) .  Loses game:     	White=2     	---        Mistake:       	White=2     	Black=3      Inaccurate:     	White=5     	Black=3      OK:         	White=10    	Black=7      Best:        	White=3     	Black=6      Strong:       	---       	Black=3} 0-1